fUST/lending_fUST_20240509
["ID","MTS","AMOUNT","RATE_DAILY","PERIOD"]
[326677582,1715217044378,-344.28492565,0.00021351,2]
[326677585,1715217044390,-166.666666,0.00021644,2]
[326677588,1715217044400,-166.666668,0.00021644,2]
[326677591,1715217044412,-166.666666,0.00021918,2]
[326677594,1715217044424,-159.42165086,0.00022,2]
[326677597,1715217044435,-2318.45890821,0.00022,2]
[326677600,1715217044445,-393.281911,0.00022264,2]
[326677603,1715217044455,-166.666666,0.00022431,2]
[326677606,1715217044469,-166.666666,0.00022944,2]
[326677609,1715217044479,-714.82665538,0.00023,2]
[326677611,1715217044489,-151.0,0.00023,2]
[326677613,1715217044499,-151.0,0.00023,2]
[326677616,1715217044509,-344.28492565,0.00023091,2]
[326677619,1715217044519,-151.0,0.00023091,2]
[326677622,1715217044529,-151.0,0.00023091,2]
[326677625,1715217044540,-151.617812,0.00023371,2]
[326677628,1715217044551,-166.666666,0.00023456,2]
[326677631,1715217044562,-488.70895939,0.000239,2]
[326677634,1715217044573,-166.666666,0.00023969,2]
[326677637,1715217044584,-159.25170486,0.0002441,2]
[326677640,1715217044594,-166.666666,0.00024482,2]
[326677643,1715217044605,-1000.0,0.00024598,2]
[326677646,1715217044615,-160.0,0.000246,2]
[326677649,1715217044626,-1000.0,0.000246,2]
[326677652,1715217044637,-153.942143,0.00024652,2]
[326677654,1715217044648,-4282.85961052,0.00024657,5]
[326677656,1715217044659,-285.29538196,0.00024657,2]
[326677658,1715217044670,-10615.15949594,0.00024657,2]
[326677660,1715217044681,-3966.74516132,0.00024657,2]
[326677662,1715217044692,-500.0,0.00024657,2]
[326677664,1715217044702,-334.77280364,0.00024657,2]
[326677666,1715217044716,-165.22719636,0.00024657,2]
[326677668,1715217044726,-889.7,0.00024657,2]
[326677670,1715217044736,-500.0,0.00024657,2]
[326677672,1715217044747,-500.0,0.00024657,2]
[326677674,1715217044758,-500.0,0.00024657,2]
[326677676,1715217044772,-500.0,0.00024657,2]
[326677678,1715217044783,-500.0,0.00024657,2]
[326677681,1715217044798,-500.0,0.00024657,2]
[326677683,1715217044812,-500.0,0.00024657,2]
[326677685,1715217044833,-500.0,0.00024657,2]
[326677687,1715217044865,-500.0,0.00024657,2]
[326677689,1715217044876,-500.0,0.00024657,2]
[326677691,1715217044888,-552.73556049,0.00024657,2]
[326677692,1715217044898,-500.0,0.00024657,2]
[326677694,1715217044909,-500.0,0.00024657,2]
[326677696,1715217044920,-500.0,0.00024657,2]
[326677698,1715217044931,-244.61878013,0.00024657,2]
[326677700,1715217044942,-500.0,0.00024657,2]
[326677702,1715217044952,-500.0,0.00024657,2]
[326677704,1715217044964,-500.0,0.00024657,2]
[326677706,1715217044976,-500.0,0.00024657,2]
[326677708,1715217044987,-464.93888803,0.00024657,2]
[326677710,1715217044998,-469.72273148,0.00024657,2]
[326677712,1715217045009,-500.0,0.00024657,2]
[326677714,1715217045020,-500.0,0.00024657,2]
[326677716,1715217045030,-573.36515402,0.00024657,2]
[326677718,1715217045041,-500.0,0.00024657,2]
[326677720,1715217045052,-500.0,0.00024657,2]
[326677722,1715217045064,-500.0,0.00024657,2]
[326677724,1715217045075,-500.0,0.00024657,2]
[326677726,1715217045087,-500.0,0.00024657,2]
[326677729,1715217045099,-500.0,0.00024657,2]
[326677731,1715217045110,-500.0,0.00024657,2]
[326677732,1715217045120,-417.52,0.00024657,2]
[326677735,1715217045131,-500.0,0.00024657,2]
[326677737,1715217045141,-500.0,0.00024657,2]
[326677739,1715217045152,-504.58,0.00024657,2]
[326677740,1715217045163,-500.0,0.00024657,2]
[326677743,1715217045175,-500.0,0.00024657,2]
[326677744,1715217045185,-674.05,0.00024657,2]
[326677747,1715217045195,-500.0,0.00024657,2]
[326677748,1715217045206,-500.0,0.00024657,2]
[326677750,1715217045216,-572.73,0.00024657,2]
[326677752,1715217045227,-1462.28,0.00024657,2]
[326677754,1715217045236,-500.0,0.00024657,2]
[326677756,1715217045247,-160.25,0.00024657,2]
[326677758,1715217045258,-500.0,0.00024657,2]
[326677760,1715217045268,-500.0,0.00024657,2]
[326677762,1715217045281,-500.0,0.00024657,2]
[326677764,1715217045292,-500.0,0.00024657,2]
[326677766,1715217045302,-500.0,0.00024657,2]
[326677768,1715217045313,-500.0,0.00024657,2]
[326677770,1715217045327,-647.92675179,0.00024657,2]
[326677772,1715217045338,-151.0,0.00024657,2]
[326677774,1715217045350,-151.0,0.00024657,2]
[326677776,1715217045361,-241.237214,0.00024657,2]
[326677778,1715217045373,-500.0,0.00024657,2]
[326677780,1715217045383,-500.0,0.00024657,2]
[326677782,1715217045394,-12711.87,0.00024657,2]
[326677784,1715217045407,-500.0,0.00024657,2]
[326677786,1715217045417,-500.0,0.00024657,2]
[326677788,1715217045429,-1115.81,0.00024657,2]
[326677790,1715217045445,-500.0,0.00024657,2]
[326677792,1715217045455,-500.0,0.00024657,2]
[326677795,1715217045468,-500.0,0.00024657,2]
[326677797,1715217045479,-500.0,0.00024657,2]
[326677799,1715217045490,-3172.37,0.00024657,2]
[326677802,1715217045507,-523.44,0.00024657,2]
[326677804,1715217045523,-500.0,0.00024657,2]
[326677806,1715217045535,-500.0,0.00024657,2]
[326677808,1715217045547,-500.0,0.00024657,2]
[326677810,1715217045558,-500.0,0.00024657,2]
[326677812,1715217045573,-500.0,0.00024657,2]
[326677814,1715217045584,-853.07,0.00024657,2]
[326677816,1715217045595,-124.66166847,0.00024657,2]
[326677819,1715217045611,-2257.27833153,0.00024657,2]
[326677821,1715217045622,-799.98,0.00024657,2]
[326677823,1715217045633,-151.0,0.00024657,2]
[326677825,1715217045644,-272.574036,0.00024657,2]
[326677827,1715217045655,-679.23,0.00024657,2]
[326677829,1715217045666,-500.0,0.00024657,2]
[326677831,1715217045679,-1244.04,0.00024657,2]
[326677833,1715217045690,-500.0,0.00024657,2]
[326677835,1715217045700,-151.0,0.00024657,2]
[326677837,1715217045712,-225.851814,0.00024657,2]
[326677839,1715217045723,-500.0,0.00024657,2]
[326677841,1715217045734,-1178.31,0.00024657,2]
[326677843,1715217045745,-499.27818151,0.00024657,2]
[326677845,1715217045756,-500.0,0.00024657,2]
[326677848,1715217045772,-500.0,0.00024657,2]
[326677850,1715217045783,-518.25,0.00024657,2]
[326677852,1715217045794,-567.2,0.00024657,2]
[326677853,1715217045804,-2025.42,0.00024657,2]
[326677855,1715217045816,-831.81,0.00024657,2]
[326677858,1715217045835,-500.0,0.00024657,2]
[326677859,1715217045866,-1327.0,0.00024657,2]
[326677861,1715217045879,-1946.39,0.00024657,2]
[326677863,1715217045892,-1914.0,0.00024657,2]
[326677865,1715217045905,-500.0,0.00024657,2]
[326677867,1715217045917,-500.0,0.00024657,2]
[326677869,1715217045930,-200.0,0.00024658,15]
[326677871,1715217045942,-2000.0,0.00024731,2]
[326677873,1715217045954,-1000.0,0.00024771,2]
[326677876,1715217045965,-39340.00132759,0.00024831,3]
[326678897,1715217058469,-7000.0,0.00017056,2]
[326680312,1715217094077,285.29538196,0.00015,2]
[326680343,1715217537791,250.0,0.0001452,2]
[326680344,1715217543330,3898.7141677,0.00014392,2]
[326680345,1715217906998,539.9652467,0.00014481,2]
[326680346,1715217952753,24900.0,0.00014405,2]
[326680347,1715218070153,989.961457,0.00014535,2]
[326680348,1715218123944,744.57696609,0.000138,2]
[326680349,1715218219518,1498.40935843,0.00011527,2]
[326680350,1715218235737,-1000.53283899,0.00015089,2]
[326680353,1715218235748,-983.82548138,0.00015276,2]
[326680357,1715218235759,-50000.0,0.00015371,2]
[326680359,1715218235770,-15692.9802432,0.00015372,2]
[326680361,1715218235780,-483.66880495,0.00015373,2]
[326680364,1715218235790,-732.68072689,0.00015373,2]
[326680367,1715218235801,-171.72456816,0.00015376,2]
[326680373,1715218235823,-307.7459628,0.00015379,2]
[326680376,1715218235836,-250.44761178,0.00015479,2]
[326680379,1715218235847,-314.36756752,0.00015482,2]
[326680381,1715218235857,-1500.213501,0.00015573,2]
[326680384,1715218235869,-3000.0,0.00015573,2]
[326680386,1715218235881,-223.59534,0.0001589,2]
[326680389,1715218235892,-422.67493261,0.00016101,2]
[326680391,1715218235902,-929.3633321,0.00016201,2]
[326680393,1715218235916,-816.25139438,0.00017054,2]
[326680395,1715218235928,-155.0150874,0.00017054,2]
[326680397,1715218235939,-1977.01137973,0.00017054,2]
[326680399,1715218235950,-309.36580396,0.00017054,2]
[326680401,1715218235961,-392.24652727,0.00017054,2]
[326680403,1715218235974,-184.9507612,0.00017054,2]
[326680405,1715218235986,-582.53808868,0.00017054,2]
[326680407,1715218235998,-1160.18614579,0.00017054,2]
[326680409,1715218236010,-1882.33843824,0.00017054,2]
[326680411,1715218236022,-192.77705139,0.00017054,2]
[326680413,1715218236032,-666.93039453,0.00017054,2]
[326680415,1715218236043,-186.4501491,0.00017054,2]
[326680417,1715218236053,-155.39710041,0.00017054,2]
[326680418,1715218236064,-154.95481595,0.00017054,2]
[326680419,1715218236075,-1290.57659265,0.00017054,2]
[326680420,1715218236086,-411.63777765,0.00017055,2]
[326680421,1715218236097,-1091.14792069,0.00017055,2]
[326680422,1715218236108,-622.16522815,0.00017056,2]
[326680428,1715218240608,-1501.51610471,0.00017056,2]
[326680429,1715218240784,-60193.44231945,0.00017056,2]
[326680430,1715218240795,-7946.92894707,0.00018,2]
[326680432,1715218240805,-154.73694719,0.00018,2]
[326680435,1715218240815,-422.67493258,0.00018251,2]
[326680438,1715218240824,-488.70895939,0.000189,2]
[326680441,1715218240834,-364.00426067,0.00019,2]
[326680444,1715218240843,-165.782021,0.00019178,2]
[326680447,1715218240852,-2702.208388,0.0002,2]
[326680449,1715218240862,-379.96231687,0.0002,2]
[326680451,1715218240871,-67507.49755129,0.0002,2]
[326680453,1715218240881,-447.76467997,0.0002,2]
[326680456,1715218240891,-151.0,0.0002,2]
[326680459,1715218240902,-3343.23979157,0.0002,2]
[326680462,1715218240911,-422.67493258,0.00020401,2]
[326680465,1715218240920,-5000.0,0.000208,2]
[326680468,1715218240930,-151.0,0.00020892,2]
[326680471,1715218240939,-151.617812,0.00020892,2]
[326680474,1715218240948,-3966.74516132,0.00021,2]
[326680477,1715218240958,-151.0,0.00021,2]
[326680480,1715218240967,-166.666666,0.00021644,2]
[326680483,1715218240976,-500.0,0.00021917,2]
[326680486,1715218240986,-500.0,0.00021917,2]
[326680489,1715218240995,-594.83,0.00021917,2]
[326680490,1715218241005,-166.666666,0.00021918,2]
[326680491,1715218241016,-159.42165086,0.00022,2]
[326680492,1715218241038,-149.87426504,0.00022,2]
[326680534,1715218252649,-2091.09902605,0.00020913,2]
[326680538,1715218252661,-2168.58464317,0.00022,2]
[326680541,1715218252670,-223.59534,0.00022264,2]
[326680545,1715218252682,-166.666666,0.00022431,2]
[326680548,1715218252691,-422.67493258,0.0002255,2]
[326680550,1715218252700,-166.666666,0.00022944,2]
[326680552,1715218252710,-714.82665538,0.00023,2]
[326680554,1715218252719,-1500.213501,0.00023359,2]
[326680556,1715218252732,-149.69865708,0.00023456,2]
[326680558,1715218252745,-16.96800892,0.00023456,2]
[326680560,1715218252756,-488.70895939,0.000239,2]
[326680562,1715218252766,-166.666666,0.00023969,2]
[326680564,1715218252775,-153.942143,0.00024247,2]
[326680566,1715218252786,-666.99224267,0.00024465,2]
[326680569,1715218252797,-286.93614379,0.00024465,2]
[326680576,1715218857673,3139.68943505,0.00018,7]
[326680577,1715219058806,3139.68943505,0.00018,7]
[326680591,1715219437157,-1882.33843824,0.00015649,2]
[326680592,1715219437168,-572.09235122,0.0001565,2]
[326680593,1715219437178,-435.013435,0.0001589,2]
[326680594,1715219437188,-226.590289,0.0001589,2]
[326680595,1715219437199,-26050.0,0.00016061,2]
[326680596,1715219437210,-11254.63215006,0.00016062,2]
[326680598,1715219437223,-791.88365063,0.00016062,2]
[326680716,1715219447105,-5012.91802482,0.00016062,2]
[326680808,1715219448063,-4553.67546306,0.00016062,2]
[326680810,1715219448072,-2674.32954009,0.00016064,2]
[326680812,1715219448082,-24900.0,0.00016066,2]
[326680814,1715219448092,-3000.0,0.00017392,2]
[326680816,1715219448102,-929.6379252,0.00017693,2]
[326680818,1715219448112,-250.0,0.0001772,2]
[326680820,1715219448122,-154.73694719,0.00018,2]
[326680822,1715219448131,-7949.13788461,0.00018,2]
[326680824,1715219448142,-3269.68128436,0.00018623,7]
[326680826,1715219448151,-273.25764425,0.00018729,2]
[326680828,1715219448160,-1885.38145435,0.0001873,2]
[326680830,1715219448170,-375.80597293,0.000189,2]
[326680832,1715219448179,-436.80511281,0.00019,2]
[326680834,1715219448188,-166.48781,0.00019178,2]
[326680836,1715219448199,-154.94505041,0.00019884,2]
[326680838,1715219448208,-289.03833147,0.000199,2]
[326680840,1715219448218,-67507.49755129,0.0002,2]
[326680842,1715219448228,-447.76467997,0.0002,2]
[326680844,1715219448237,-379.96231687,0.0002,2]
[326680846,1715219448246,-620.46384346,0.0002,2]
[326680848,1715219448256,-5000.0,0.000208,2]
[326680850,1715219448265,-2630.07945824,0.00020908,2]
[326680852,1715219448275,-289.03833144,0.00021182,2]
[326680854,1715219448286,-166.666668,0.00021644,2]
[326680856,1715219448295,-166.666666,0.00021644,2]
[326680858,1715219448304,-500.0,0.00021917,2]
[326680860,1715219448314,-500.0,0.00021917,2]
[326680862,1715219448323,-594.83,0.00021917,2]
[326680864,1715219448332,-166.666666,0.00021918,2]
[326680866,1715219448341,-450.0,0.00021918,10]
[326680868,1715219448350,-159.42165086,0.00022,2]
[326680870,1715219448360,-5012.91802482,0.00022,2]
[326680872,1715219448368,-435.013435,0.00022264,2]
[326680874,1715219448378,-166.666666,0.00022431,2]
[326680876,1715219448387,-289.03833144,0.00022463,2]
[326680878,1715219448397,-166.666666,0.00022944,2]
[326680880,1715219448406,-714.82665538,0.00023,2]
[326680882,1715219448415,-166.666666,0.00023456,2]
[326680884,1715219448426,-150.0,0.00023511,3]
[326680886,1715219448435,-289.03833144,0.00023745,2]
[326680888,1715219448444,-153.0,0.00023836,2]
[326680890,1715219448455,-375.80597293,0.000239,2]
[326680892,1715219448465,-166.666666,0.00023969,2]
[326680894,1715219448474,-253.67262861,0.00024,2]
[326680896,1715219448483,-306.0,0.00024247,2]
[326680897,1715219448493,-153.0,0.00024304,2]
[326680899,1715219448503,-153.0,0.00024304,2]
[326680900,1715219448517,-153.0,0.00024304,2]
[326680902,1715219448526,-3966.74516132,0.00024465,2]
[326680904,1715219448535,-10615.15949594,0.00024465,2]
[326680906,1715219448544,-166.666666,0.00024482,2]
[326680908,1715219448555,-159.25170486,0.00024523,2]
[326680910,1715219448564,-435.07662337,0.00024557,2]
[326680912,1715219448574,-150.0,0.00024585,5]
[326680914,1715219448583,-908.59032088,0.00024589,2]
[326683981,1715219960828,154.73694719,9.999e-05,2]
[326683983,1715220435296,3269.68128436,0.00018,7]
[326684119,1715220650310,-1882.33843824,0.00015885,2]
[326684120,1715220650321,-154.73694719,0.00015886,2]
[326684122,1715220650333,-220.034749,0.0001589,2]
[326684124,1715220650344,-401.0013148,0.00017455,2]
[326684125,1715220650354,-18010.92440714,0.00017547,2]
[326684126,1715220650364,-26050.0,0.00017548,2]
[326684127,1715220650375,-171.87532972,0.0001755,2]
[326684128,1715220650385,-309.30404197,0.00017555,2]
[326684129,1715220650395,-230.20249366,0.00017558,2]
[326684130,1715220650406,-929.6379252,0.00017558,2]
[326684131,1715220650416,-250.0,0.00017559,2]
[326684132,1715220650426,-8972.1491317,0.0001756,2]
[326684154,1715220656739,-994.02428363,0.00017547,2]
[326684156,1715220656752,-25055.97571637,0.00017547,2]
[326684158,1715220656764,-59307.09334699,0.00017547,2]
[326684160,1715220656774,-2396.15219991,0.00017548,2]
[326684162,1715220656784,-15927.8508683,0.0001756,2]
[326684164,1715220656795,-7950.37253972,0.00018,2]
[326684166,1715220656805,-154.73694719,0.00018,2]
[326684168,1715220656820,-385.77244,0.00018441,2]
[326684170,1715220656829,-375.80597293,0.000189,2]
[326684172,1715220656839,-436.80511281,0.00019,2]
[326684174,1715220656851,-166.4878129,0.00019178,2]
[326684176,1715220656860,-401.0013148,0.00019231,2]
[326684178,1715220656871,-168.73595719,0.00019375,2]
[326684181,1715220656881,-154.73694719,0.00019475,2]
[326684182,1715220656894,-5301.26870806,0.00019506,2]
[326684184,1715220656905,-273.25764425,0.00019602,2]
[326684187,1715220656917,-262.14470515,0.0001961,2]
[326684188,1715220656927,-154.94505041,0.00019619,2]
[326684191,1715220656937,-2347.29998153,0.0002,2]
[326684430,1715221748037,-201.235806,0.0001589,2]
[326684431,1715221748744,-1292.04221398,0.00017404,2]
[326684432,1715221805616,466.06,0.00010959,2]
[326684434,1715221835858,-391.512091,0.0001589,2]
[326684436,1715221835868,-358.74406045,0.00017306,2]
[326684438,1715221835881,-18010.92440714,0.00017399,2]
[326684440,1715221835894,-26050.0,0.000174,2]
[326684442,1715221835905,-48262.03091814,0.00017401,2]
[326684844,1715221841694,-11045.06242885,0.00017401,2]
[326684848,1715221841706,-2403.55423335,0.00017406,2]
[326684851,1715221841718,-7200.52396276,0.00017408,2]
[326684853,1715221841733,-17699.47603724,0.00017408,2]
[326684855,1715221841746,-250.0,0.0001755,2]
[326684857,1715221841757,-169.41842458,0.00017678,2]
[326684859,1715221841768,-786.717097,0.00017778,2]
[326684860,1715221841780,-154.73694719,0.00018,2]
[326684861,1715221841791,-7950.37253972,0.00018,2]
[326684862,1715221841803,-189.30448835,0.00018707,2]
[326684863,1715221841814,-484.93287539,0.00018794,2]
[326684864,1715221842009,-226.12672154,0.0001881,2]
[326684865,1715221842038,-5301.26870806,0.0001881,2]
[326684866,1715221842058,-377.62507978,0.000189,2]
[326684867,1715221842070,-436.80511281,0.00019,2]
[326684868,1715221842080,-358.74406044,0.00019119,2]
[326684869,1715221842090,-166.48781,0.00019178,2]
[326684870,1715221842101,-166.4878129,0.00019178,2]
[326684871,1715221842111,-920.62709156,0.000198,2]
[326684872,1715221842121,-273.25764425,0.00019993,2]
[326684873,1715221842131,-262.14470515,0.00019994,2]
[326684874,1715221842141,-154.94505041,0.00019995,2]
[326684875,1715221842153,-15692.9802432,0.00019996,2]
[326684876,1715221842164,-1513.39223687,0.00019999,2]
[326684877,1715221842174,-39368.83681665,0.0002,5]
[326684878,1715221842184,-28315.75576261,0.0002,2]
[326684879,1715221842198,-496.36527315,0.0002,2]
[326685284,1715221850894,-2075.02212881,0.00019999,2]
[326685287,1715221850906,-2428.06465339,0.00019999,2]
[326685291,1715221850922,-2369.92097165,0.00019999,2]
[326685298,1715221850934,-350.999985,0.00019999,2]
[326685325,1715222460869,484.01447361,9.999e-05,2]
[326685338,1715222896784,484.01447361,9.999e-05,2]
[326685414,1715223049211,-1063.07876304,0.00015501,2]
[326685418,1715223049223,-484.01447361,0.00015502,2]
[326685420,1715223049234,-1882.53987858,0.00015503,2]
[326685424,1715223049244,-286.99524836,0.00015503,2]
[326685428,1715223049255,-169.41842458,0.00015505,2]
[326685431,1715223049279,-9685.20638638,0.00015597,2]
[326685433,1715223049421,-49621.88696061,0.00015597,2]
[326685434,1715223049432,-59307.09334699,0.00015598,2]
[326685435,1715223049442,-26050.0,0.00015599,2]
[326685436,1715223049453,-1093.72439239,0.00015599,2]
[326685437,1715223049463,-7405.47213764,0.000156,2]
[326685438,1715223049476,-1978.21947848,0.000156,2]
[326685439,1715223049486,-412.55333538,0.00015603,2]
[326685440,1715223049497,-2679.12286695,0.00015606,2]
[326685442,1715223049512,-24900.0,0.00015608,2]
[326685444,1715223049524,-250.0,0.00015608,2]
[326685446,1715223049534,-786.717097,0.00016129,2]
[326685448,1715223049544,-3000.0,0.00016385,2]
[326685450,1715223049555,-286.99524835,0.00017767,2]
[326685452,1715223049565,-189.30448835,0.000179,2]
[326685454,1715223049576,-920.62709156,0.000179,2]
[326685456,1715223049589,-219.55096462,0.00018,2]
[326685458,1715223049599,-7950.37253972,0.00018,2]
[326685461,1715223049627,-5313.22268011,0.00018413,2]
[326685463,1715223049638,-226.12672154,0.00018895,2]
[326685465,1715223049648,-540.52806624,0.000189,2]
[326685467,1715223049659,-934.61477785,0.00018973,2]
[326685469,1715223049669,-364.01672571,0.00019,2]
[326685471,1715223049679,-166.48781,0.00019178,2]
[326685473,1715223049690,-332.05338305,0.00019972,2]
[326685475,1715223049701,-2114.94996902,0.00019972,2]
[326685477,1715223049711,-154.97449672,0.00019972,2]
[326685479,1715223049722,-274.4509611,0.00019973,2]
[326685481,1715223049733,-154.94505041,0.00019973,2]
[326685483,1715223049743,-309.44474547,0.00019973,2]
[326685484,1715223049754,-5602.40054945,0.00019973,2]
[326685485,1715223049765,-262.14470515,0.00019974,2]
[326685486,1715223049775,-15729.65569791,0.00019974,2]
[326685487,1715223049786,-9197.95939155,0.00019999,2]
[326685488,1715223049953,-152.0,0.00019999,5]
[326685489,1715223049968,-40714.98402097,0.0002,5]
[326685490,1715223049978,-30230.02540619,0.0002,2]
[326685491,1715223185845,934.61477785,0.00014813,2]
[326685492,1715223232833,3000.0,0.00014593,2]
[326685496,1715223332699,154.73694719,9.999e-05,2]
[326685497,1715223337200,786.717097,0.00014536,2]
[326685498,1715223453426,250.0,0.00014502,2]
[326685499,1715223494359,24900.0,0.00014483,2]
[326685500,1715223511291,409.82935884,9.999e-05,2]
[326685501,1715223514779,484.01447361,9.999e-05,2]
[326685502,1715223634230,1882.53987858,9.999e-05,2]
[326685509,1715223823243,154.73694719,9.999e-05,2]
[326685510,1715223884814,393.358548,0.00014448,2]
[326685511,1715224024725,929.3633321,0.0001459,2]
[326685512,1715224098355,24900.0,0.00014479,2]
[326685513,1715224207044,5000.0,0.000211,9]
[326685514,1715224239773,-9383.69161612,0.00015256,2]
[326685517,1715224239784,-26050.0,0.00015257,2]
[326685519,1715224239794,-2674.57927242,0.00015257,2]
[326685521,1715224239804,-930.19391766,0.00015261,2]
[326685526,1715224239821,-1424.38144003,0.00015361,2]
[326685529,1715224239836,-155.04239008,0.00015365,2]
[326685531,1715224239847,-155.6583376,0.00015367,2]
[326685533,1715224239857,-675.37046474,0.00015371,2]
[326685535,1715224239868,-425.6183824,0.00015469,2]
[326685537,1715224239880,-193.21884001,0.00015471,2]
[326685540,1715224239891,-204.34881716,0.00015475,2]
[326685543,1715224239901,-314.47055148,0.00015476,2]
[326685546,1715224239912,-1163.75514321,0.00015477,2]
[326685549,1715224239923,-584.02714747,0.00015484,2]
[326685551,1715224239933,-185.39269354,0.00015485,2]
[326685553,1715224239943,-154.9726954,0.00015488,2]
[326685555,1715224239954,-189.30448835,0.00015495,2]
[326685557,1715224239964,-920.62709156,0.00015495,2]
[326685559,1715224239978,-412.55333538,0.0001559,2]
[326685561,1715224239987,-1365.6596549,0.0001559,2]
[326685563,1715224239998,-1501.20841821,0.00015591,2]
[326685564,1715224240015,-186.64696616,0.00015591,2]
[326685566,1715224240026,-155.0150874,0.00015592,2]
[326685568,1715224240036,-262.14470515,0.00015592,2]
[326685570,1715224240050,-154.94505041,0.00015592,2]
[326685572,1715224240076,-309.44474547,0.00015592,2]
[326685574,1715224240086,-154.97449672,0.00015592,2]
[326685576,1715224240096,-2114.94996902,0.00015592,2]
[326685578,1715224240107,-5313.22268011,0.00015592,2]
[326685580,1715224240118,-226.12672154,0.00015592,2]
[326685582,1715224240128,-4509.44743367,0.00015593,2]
[326685664,1715224247120,-1034.96713852,0.00015593,2]
[326685671,1715224247135,-57.98597726,0.00015593,2]
[326685676,1715224247145,-927.40744701,0.00015593,2]
[326685682,1715224247159,-14802.2482509,0.00015593,2]
[326685686,1715224247169,-818.27147135,0.00015594,2]
[326685688,1715224247181,-15990.88505523,0.00015595,2]
[326685690,1715224247191,-220.034749,0.0001589,2]
[326685692,1715224247202,-191.174015,0.0001589,2]
[326685694,1715224247211,-274.4509611,0.000165,2]
[326685696,1715224247221,-552.36025865,0.00018,2]
[326685698,1715224247231,-154.73694719,0.00018,2]
[326685700,1715224247241,-540.52806624,0.000189,2]
[326685702,1715224247251,-364.01672571,0.00019,2]
[326685703,1715224247260,-166.48781,0.00019178,2]
[326685705,1715224247270,-3090.44437915,0.00019999,2]
[326685707,1715224247280,-6118.05112781,0.0002,2]
[326685709,1715224247290,-9197.95939155,0.0002,2]
[326685711,1715224247300,-160.0,0.0002,2]
[326685712,1715224247310,-1003.204093,0.0002,2]
[326685713,1715224247320,-154.7878227,0.0002049,2]
[326685714,1715224247330,-153.0,0.00020543,2]
[326685715,1715224247340,-379.96231687,0.00020894,2]
[326685716,1715224247350,-3343.23979157,0.00020895,2]
[326685717,1715224247360,-447.76467997,0.00020906,2]
[326685718,1715224247369,-2630.07945824,0.00020907,2]
[326685719,1715224247379,-153.0,0.00021017,2]
[326685720,1715224247389,-306.5211145,0.00021055,2]
[326685721,1715224247398,-166.666666,0.00021644,2]
[326685722,1715224247408,-393.358548,0.00021672,2]
[326685723,1715224247417,-506.82545103,0.00021917,2]
[326685724,1715224247427,-501.67497267,0.00021917,2]
[326685725,1715224247436,-500.0,0.00021917,2]
[326685726,1715224247445,-307.34462269,0.00021917,2]
[326685727,1715224247455,-505.72597859,0.00021917,2]
[326685728,1715224247464,-500.0,0.00021917,2]
[326685729,1715224247474,-680.25,0.00021917,2]
[326685730,1715224247483,-523.86202308,0.00021917,2]
[326685731,1715224247492,-500.0,0.00021917,2]
[326685732,1715224247501,-500.0,0.00021917,2]
[326685733,1715224247511,-500.0,0.00021917,2]
[326685734,1715224247521,-500.0,0.00021917,2]
[326685735,1715224247531,-406.75204285,0.00021917,2]
[326685736,1715224247540,-500.0,0.00021917,2]
[326685737,1715224247549,-510.46975147,0.00021917,2]
[326685738,1715224247558,-500.0,0.00021917,2]
[326685739,1715224247568,-500.0,0.00021917,2]
[326685740,1715224247577,-500.0,0.00021917,2]
[326685741,1715224247586,-343.19452409,0.00021917,2]
[326685742,1715224247595,-500.0,0.00021917,2]
[326685743,1715224247605,-500.0,0.00021917,2]
[326685744,1715224247614,-151.0,0.00021917,2]
[326685745,1715224247624,-820.7,0.00021917,2]
[326685746,1715224247633,-500.0,0.00021917,2]
[326685747,1715224247644,-500.0,0.00021917,2]
[326685748,1715224247653,-500.0,0.00021917,2]